[Event "Titled Tuesday Blitz November 29 Early 2022"]
[White "Tologon tegin, Semetei"]
[Black "Aqib Javaid Butt"]
[WhiteFideId "13800574"]
[BlackFideId "7801262"]
[WhiteElo "2282"]
[BlackElo "1659"]
[Result "1-0"]
[Round "01"]
[TimeControl "180+1"]
[Date "2022.11.30"]
[WhiteClock "0:00:15"]
[BlackClock "0:00:01"]

1. e4 {[%clk 0:02:57]}  c6 {[%clk 0:02:59]} 2. d4 {[%clk 0:02:56]}  d5 {[%clk 0:02:59]} 3. e5 {[%clk 0:02:56]}  Bf5 {[%clk 0:02:58]} 4. c4 {[%clk 0:02:56]}  e6 {[%clk 0:02:55]} 5. Nc3 {[%clk 0:02:56]}  Nd7 {[%clk 0:02:55]} 6. h3 {[%clk 0:02:22]}  h5 {[%clk 0:02:38]} 7. Nf3 {[%clk 0:02:17]}  dxc4 {[%clk 0:02:28]} 8. Bxc4 {[%clk 0:02:13]}  Ne7 {[%clk 0:02:28]} 9. O-O {[%clk 0:02:11]}  Nd5 {[%clk 0:02:27]} 10. Bd3 {[%clk 0:02:04]}  Bxd3 {[%clk 0:02:26]} 11. Qxd3 {[%clk 0:02:03]}  Qb6 {[%clk 0:02:02]} 12. Ne4 {[%clk 0:02:00]}  c5 {[%clk 0:01:52]} 13. dxc5 {[%clk 0:01:47]}  Nxc5 {[%clk 0:01:52]} 14. Nxc5 {[%clk 0:01:45]}  Bxc5 {[%clk 0:01:53]} 15. a3 {[%clk 0:01:42]}  Rd8 {[%clk 0:01:45]} 16. Qe4 {[%clk 0:01:41]}  Ne7 {[%clk 0:01:35]} 17. b4 {[%clk 0:01:37]}  Bd4 {[%clk 0:01:28]} 18. Ra2 {[%clk 0:01:37]}  Qc6 {[%clk 0:01:26]} 19. Qe2 {[%clk 0:01:16]}  g6 {[%clk 0:00:46]} 20. Rc2 {[%clk 0:01:14]}  Qa4 {[%clk 0:00:33]} 21. Bg5 {[%clk 0:00:53]}  Bb6 {[%clk 0:00:23]} 22. Bf6 {[%clk 0:00:34]}  Rg8 {[%clk 0:00:11]} 23. Ng5 {[%clk 0:00:31]}  Rd7 {[%clk 0:00:09]} 24. Ne4 {[%clk 0:00:29]}  Nd5 {[%clk 0:00:03]} 25. Rc8+ {[%clk 0:00:26]}  Bd8 {[%clk 0:00:03]} 26. Bxd8 {[%clk 0:00:19]}  Rxd8 {[%clk 0:00:02]} 27. Nd6+ {[%clk 0:00:20]}  Ke7 {[%clk 0:00:03]} 28. Rxd8 {[%clk 0:00:17]}  Rxd8 {[%clk 0:00:04]} 29. Qf3 {[%clk 0:00:16]}  Rf8 {[%clk 0:00:01]} 30. Rc1 {[%clk 0:00:15]} 1-0


[Site "https://www.chess.com"]

[Event "Titled Tuesday Blitz November 29 Early 2022"]
[White "Trost, Edvin"]
[Black "Roman, Rodrigo"]
[WhiteFideId "1729519"]
[BlackFideId "3701220"]
[WhiteElo "2247"]
[BlackElo "1995"]
[Result "1-0"]
[Round "01"]
[TimeControl "180+1"]
[Date "2022.11.30"]
[WhiteClock "0:00:44"]
[BlackClock "0:00:22"]

1. e4 {[%clk 0:02:41]}  c5 {[%clk 0:02:47]} 2. Nf3 {[%clk 0:02:40]}  Nc6 {[%clk 0:02:35]} 3. g3 {[%clk 0:02:32]}  g6 {[%clk 0:02:27]} 4. Bg2 {[%clk 0:02:32]}  Bg7 {[%clk 0:02:27]} 5. O-O {[%clk 0:02:32]}  e5 {[%clk 0:02:27]} 6. d3 {[%clk 0:02:30]}  Nge7 {[%clk 0:02:27]} 7. Na3 {[%clk 0:02:26]}  d6 {[%clk 0:02:27]} 8. Nc4 {[%clk 0:02:25]}  O-O {[%clk 0:02:28]} 9. a4 {[%clk 0:02:25]}  Rb8 {[%clk 0:02:25]} 10. Re1 {[%clk 0:02:23]}  b6 {[%clk 0:02:25]} 11. Bd2 {[%clk 0:02:22]}  a6 {[%clk 0:02:26]} 12. Qc1 {[%clk 0:02:21]}  b5 {[%clk 0:02:19]} 13. axb5 {[%clk 0:02:22]}  axb5 {[%clk 0:02:20]} 14. Na5 {[%clk 0:02:19]}  b4 {[%clk 0:02:15]} 15. Nxc6 {[%clk 0:02:19]}  Nxc6 {[%clk 0:02:16]} 16. Bh6 {[%clk 0:02:17]}  f6 {[%clk 0:02:12]} 17. c3 {[%clk 0:02:13]}  Qd7 {[%clk 0:01:48]} 18. Bxg7 {[%clk 0:02:07]}  Kxg7 {[%clk 0:01:48]} 19. Nd2 {[%clk 0:02:07]}  Qc7 {[%clk 0:01:46]} 20. Nc4 {[%clk 0:02:07]}  Be6 {[%clk 0:01:46]} 21. Ne3 {[%clk 0:02:05]}  bxc3 {[%clk 0:01:45]} 22. bxc3 {[%clk 0:02:06]}  Rb3 {[%clk 0:01:45]} 23. Qd2 {[%clk 0:02:00]}  Rfb8 {[%clk 0:01:44]} 24. Nc4 {[%clk 0:02:00]}  Bxc4 {[%clk 0:01:30]} 25. dxc4 {[%clk 0:02:01]}  Nd8 {[%clk 0:01:28]} 26. Red1 {[%clk 0:02:00]}  Nf7 {[%clk 0:01:28]} 27. Ra2 {[%clk 0:01:57]}  Rb1 {[%clk 0:01:23]} 28. h4 {[%clk 0:01:56]}  Qb7 {[%clk 0:01:17]} 29. Rxb1 {[%clk 0:01:50]}  Qxb1+ {[%clk 0:01:18]} 30. Kh2 {[%clk 0:01:51]}  Rb7 {[%clk 0:01:14]} 31. Bf3 {[%clk 0:01:46]}  Qf1 {[%clk 0:01:10]} 32. Qe2 {[%clk 0:01:28]}  Qxe2 {[%clk 0:01:02]} 33. Bxe2 {[%clk 0:01:29]}  Rb3 {[%clk 0:01:02]} 34. Ra7 {[%clk 0:01:28]}  h5 {[%clk 0:00:57]} 35. Bf1 {[%clk 0:01:22]}  g5 {[%clk 0:00:47]} 36. Be2 {[%clk 0:01:00]}  g4 {[%clk 0:00:45]} 37. Bd1 {[%clk 0:01:00]}  Rxc3 {[%clk 0:00:38]} 38. Ba4 {[%clk 0:01:00]}  Kf8 {[%clk 0:00:38]} 39. Bc6 {[%clk 0:00:58]}  Nd8 {[%clk 0:00:29]} 40. Bd5 {[%clk 0:00:57]}  Rf3 {[%clk 0:00:13]} 41. Kg2 {[%clk 0:00:57]}  f5 {[%clk 0:00:13]} 42. Rh7 {[%clk 0:00:57]}  fxe4 {[%clk 0:00:10]} 43. Bxe4 {[%clk 0:00:55]}  Rc3 {[%clk 0:00:09]} 44. Bd5 {[%clk 0:00:54]}  e4 {[%clk 0:00:10]} 45. Rxh5 {[%clk 0:00:43]}  e3 {[%clk 0:00:09]} 46. fxe3 {[%clk 0:00:44]}  Rc2+ {[%clk 0:00:08]} 47. Kg1 {[%clk 0:00:44]}  Rc1+ {[%clk 0:00:08]} 48. Kf2 {[%clk 0:00:44]}  Rc2+ {[%clk 0:00:09]} 49. Kf1 {[%clk 0:00:44]}  Rc1+ {[%clk 0:00:10]} 50. Ke2 {[%clk 0:00:45]}  Rg1 {[%clk 0:00:10]} 51. Kf2 {[%clk 0:00:45]}  Rd1 {[%clk 0:00:10]} 52. Rg5 {[%clk 0:00:45]}  Rd2+ {[%clk 0:00:10]} 53. Ke1 {[%clk 0:00:46]}  Rh2 {[%clk 0:00:08]} 54. Rxg4 {[%clk 0:00:46]}  Ke7 {[%clk 0:00:09]} 55. Re4+ {[%clk 0:00:45]}  Kf6 {[%clk 0:00:09]} 56. Re8 {[%clk 0:00:43]}  Rh3 {[%clk 0:00:08]} 57. Rxd8 {[%clk 0:00:43]}  Rxg3 {[%clk 0:00:08]} 58. Rxd6+ {[%clk 0:00:43]}  Ke5 {[%clk 0:00:08]} 59. Re6+ {[%clk 0:00:44]}  Kf5 {[%clk 0:00:09]} 60. Kd2 {[%clk 0:00:44]}  Rh3 {[%clk 0:00:09]} 61. Rc6 {[%clk 0:00:44]}  Rxh4 {[%clk 0:00:08]} 62. Rxc5 {[%clk 0:00:44]}  Ke5 {[%clk 0:00:09]} 63. Kd3 {[%clk 0:00:44]}  Rh2 {[%clk 0:00:09]} 64. Rc6 {[%clk 0:00:44]}  Ra2 {[%clk 0:00:07]} 65. Re6+ {[%clk 0:00:44]}  Kf5 {[%clk 0:00:07]} 66. Re4 {[%clk 0:00:44]}  Ra1 {[%clk 0:00:07]} 67. Rf4+ {[%clk 0:00:44]}  Ke5 {[%clk 0:00:08]} 68. Re4+ {[%clk 0:00:44]}  Kd6 {[%clk 0:00:09]} 69. Rh4 {[%clk 0:00:44]}  Kc5 {[%clk 0:00:09]} 70. Rh1 {[%clk 0:00:43]}  Ra7 {[%clk 0:00:08]} 71. e4 {[%clk 0:00:43]}  Ra3+ {[%clk 0:00:08]} 72. Ke2 {[%clk 0:00:43]}  Kd4 {[%clk 0:00:08]} 73. Rd1+ {[%clk 0:00:42]}  Ke5 {[%clk 0:00:08]} 74. c5 {[%clk 0:00:43]}  Rc3 {[%clk 0:00:08]} 75. c6 {[%clk 0:00:44]}  Kd6 {[%clk 0:00:08]} 76. Rd2 {[%clk 0:00:45]}  Ke5 {[%clk 0:00:08]} 77. Kd1 {[%clk 0:00:44]}  Kd6 {[%clk 0:00:08]} 78. Rc2 {[%clk 0:00:45]}  Rd3+ {[%clk 0:00:08]} 79. Kc1 {[%clk 0:00:46]}  Kc7 {[%clk 0:00:08]} 80. Rd2 {[%clk 0:00:45]}  Rc3+ {[%clk 0:00:08]} 81. Kd1 {[%clk 0:00:46]}  Kd6 {[%clk 0:00:08]} 82. Ke2 {[%clk 0:00:46]}  Ke5 {[%clk 0:00:09]} 83. Rd3 {[%clk 0:00:46]}  Rc2+ {[%clk 0:00:08]} 84. Ke3 {[%clk 0:00:46]}  Rc1 {[%clk 0:00:09]} 85. Kd2 {[%clk 0:00:46]}  Ra1 {[%clk 0:00:04]} 86. Rc3 {[%clk 0:00:46]}  Rh1 {[%clk 0:00:02]} 87. c7 {[%clk 0:00:47]}  Rh2+ {[%clk 0:00:03]} 88. Kc1 {[%clk 0:00:47]}  Rh1+ {[%clk 0:00:03]} 89. Kb2 {[%clk 0:00:47]}  Rh2+ {[%clk 0:00:04]} 90. Rc2 {[%clk 0:00:47]}  Kd4 {[%clk 0:00:05]} 91. Rxh2 {[%clk 0:00:46]}  Ke3 {[%clk 0:00:06]} 92. Rc2 {[%clk 0:00:46]}  Kd3 {[%clk 0:00:06]} 93. c8=Q {[%clk 0:00:46]}  Ke3 {[%clk 0:00:07]} 94. Qc3+ {[%clk 0:00:46]}  Kf4 {[%clk 0:00:07]} 95. Rf2+ {[%clk 0:00:46]}  Kg5 {[%clk 0:00:07]} 96. Qf3 {[%clk 0:00:47]}  Kh6 {[%clk 0:00:07]} 97. Qg4 {[%clk 0:00:47]}  Kh7 {[%clk 0:00:08]} 98. Bg8+ {[%clk 0:00:45]}  Kh8 {[%clk 0:00:09]} 99. Bh7 {[%clk 0:00:46]}  Kxh7 {[%clk 0:00:08]} 100. Rg2 {[%clk 0:00:46]}  Kh6 {[%clk 0:00:09]} 101. Kb3 {[%clk 0:00:47]}  Kh7 {[%clk 0:00:10]} 102. Kb4 {[%clk 0:00:47]}  Kh8 {[%clk 0:00:11]} 103. Kb5 {[%clk 0:00:47]}  Kh7 {[%clk 0:00:12]} 104. Kb6 {[%clk 0:00:48]}  Kh8 {[%clk 0:00:12]} 105. Kb7 {[%clk 0:00:49]}  Kh7 {[%clk 0:00:13]} 106. Kb8 {[%clk 0:00:49]}  Kh8 {[%clk 0:00:14]} 107. e5 {[%clk 0:00:49]}  Kh7 {[%clk 0:00:15]} 108. e6 {[%clk 0:00:50]}  Kh6 {[%clk 0:00:16]} 109. e7 {[%clk 0:00:49]}  Kh7 {[%clk 0:00:17]} 110. e8=Q {[%clk 0:00:48]}  Kh6 {[%clk 0:00:18]} 111. Qf8+ {[%clk 0:00:47]}  Kh7 {[%clk 0:00:18]} 112. Qe7+ {[%clk 0:00:45]}  Kh6 {[%clk 0:00:19]} 113. Qee6+ {[%clk 0:00:44]}  Kh7 {[%clk 0:00:20]} 114. Qgf5+ {[%clk 0:00:44]}  Kh8 {[%clk 0:00:20]} 115. Rh2+ {[%clk 0:00:44]}  Kg7 {[%clk 0:00:21]} 116. Qee5+ {[%clk 0:00:45]}  Kg8 {[%clk 0:00:21]} 117. Qg6+ {[%clk 0:00:45]}  Kf8 {[%clk 0:00:21]} 118. Qef5+ {[%clk 0:00:44]}  Ke7 {[%clk 0:00:21]} 119. Qge6+ {[%clk 0:00:44]}  Kd8 {[%clk 0:00:22]} 120. Qa5# {[%clk 0:00:44]} 1-0


[Site "https://www.chess.com"]

[Event "Titled Tuesday Blitz November 29 Early 2022"]
[White "Tsukerman, Julia"]
[Black "Cappelletto, Joshuaede"]
[WhiteFideId "2621649"]
[BlackFideId "2824383"]
[WhiteElo "1667"]
[BlackElo "2237"]
[Result "0-1"]
[Round "01"]
[TimeControl "180+1"]
[Date "2022.11.30"]
[WhiteClock "0:00:20"]
[BlackClock "0:01:15"]

1. e4 {[%clk 0:03:00]}  c5 {[%clk 0:02:59]} 2. Nf3 {[%clk 0:03:00]}  d6 {[%clk 0:02:58]} 3. d4 {[%clk 0:03:00]}  cxd4 {[%clk 0:02:57]} 4. Nxd4 {[%clk 0:03:01]}  Nf6 {[%clk 0:02:58]} 5. Nc3 {[%clk 0:03:02]}  g6 {[%clk 0:02:57]} 6. f4 {[%clk 0:02:59]}  Bg7 {[%clk 0:02:56]} 7. e5 {[%clk 0:02:58]}  dxe5 {[%clk 0:02:47]} 8. fxe5 {[%clk 0:02:55]}  Ng4 {[%clk 0:02:47]} 9. Bb5+ {[%clk 0:02:30]}  Bd7 {[%clk 0:02:36]} 10. Qxg4 {[%clk 0:02:22]}  Nc6 {[%clk 0:02:36]} 11. Bxc6 {[%clk 0:02:13]}  bxc6 {[%clk 0:02:36]} 12. e6 {[%clk 0:02:05]}  Bc8 {[%clk 0:02:13]} 13. Be3 {[%clk 0:01:35]}  O-O {[%clk 0:02:06]} 14. O-O-O {[%clk 0:01:21]}  f5 {[%clk 0:02:06]} 15. Qf4 {[%clk 0:01:10]}  Qe8 {[%clk 0:01:55]} 16. Qf3 {[%clk 0:00:56]}  Bb7 {[%clk 0:01:54]} 17. Qf4 {[%clk 0:00:54]}  a6 {[%clk 0:01:52]} 18. Nce2 {[%clk 0:00:50]}  c5 {[%clk 0:01:51]} 19. Nb3 {[%clk 0:00:48]}  c4 {[%clk 0:01:40]} 20. Qxc4 {[%clk 0:00:45]}  Rc8 {[%clk 0:01:41]} 21. Qf4 {[%clk 0:00:36]}  Bxg2 {[%clk 0:01:36]} 22. Rhg1 {[%clk 0:00:35]}  Be4 {[%clk 0:01:37]} 23. c3 {[%clk 0:00:32]}  Qa4 {[%clk 0:01:36]} 24. Ng3 {[%clk 0:00:19]}  Qxa2 {[%clk 0:01:20]} 25. Nxe4 {[%clk 0:00:19]}  fxe4 {[%clk 0:01:20]} 26. Qxe4 {[%clk 0:00:19]}  Qxb3 {[%clk 0:01:21]} 27. Qc2 {[%clk 0:00:19]}  Qxe6 {[%clk 0:01:18]} 28. Bd4 {[%clk 0:00:19]}  Bxd4 {[%clk 0:01:15]} 29. Rxd4 {[%clk 0:00:20]}  Qe3+ {[%clk 0:01:15]} 0-1


[Site "https://www.chess.com"]

[Event "Titled Tuesday Blitz November 29 Early 2022"]
[White "Vakhlamov, Igor L."]
[Black "Kulkarni, Vikramaditya"]
[WhiteFideId "24126748"]
[BlackFideId "5009847"]
[WhiteElo "2401"]
[BlackElo "2273"]
[Result "1-0"]
[Round "01"]
[TimeControl "180+1"]
[Date "2022.11.30"]
[WhiteClock "0:00:04"]
[BlackClock "0:00:01"]

1. e4 {[%clk 0:02:59]}  e6 {[%clk 0:02:56]} 2. d4 {[%clk 0:02:59]}  d5 {[%clk 0:02:55]} 3. Nc3 {[%clk 0:03:00]}  Nf6 {[%clk 0:02:54]} 4. Bd3 {[%clk 0:03:00]}  Nc6 {[%clk 0:02:51]} 5. Nf3 {[%clk 0:02:54]}  Nb4 {[%clk 0:02:49]} 6. e5 {[%clk 0:02:51]}  Nxd3+ {[%clk 0:02:47]} 7. cxd3 {[%clk 0:02:52]}  Nd7 {[%clk 0:02:47]} 8. Bg5 {[%clk 0:02:51]}  Be7 {[%clk 0:02:33]} 9. Bxe7 {[%clk 0:02:50]}  Qxe7 {[%clk 0:02:32]} 10. O-O {[%clk 0:02:50]}  O-O {[%clk 0:02:31]} 11. Rc1 {[%clk 0:02:40]}  c6 {[%clk 0:02:30]} 12. Re1 {[%clk 0:02:39]}  b6 {[%clk 0:02:28]} 13. Ne2 {[%clk 0:02:39]}  Bb7 {[%clk 0:02:26]} 14. Qd2 {[%clk 0:02:38]}  a5 {[%clk 0:02:22]} 15. h4 {[%clk 0:02:35]}  Rac8 {[%clk 0:02:19]} 16. Ng3 {[%clk 0:01:52]}  Ba6 {[%clk 0:02:09]} 17. a3 {[%clk 0:01:52]}  c5 {[%clk 0:02:05]} 18. h5 {[%clk 0:01:40]}  cxd4 {[%clk 0:01:55]} 19. Nxd4 {[%clk 0:01:33]}  Rxc1 {[%clk 0:01:43]} 20. Qxc1 {[%clk 0:01:34]}  Bxd3 {[%clk 0:01:33]} 21. h6 {[%clk 0:01:20]}  g6 {[%clk 0:01:18]} 22. Qc7 {[%clk 0:01:10]}  Qc5 {[%clk 0:00:58]} 23. Nc6 {[%clk 0:01:07]}  Bb5 {[%clk 0:00:50]} 24. Qxd7 {[%clk 0:00:43]}  Bxc6 {[%clk 0:00:50]} 25. Qa7 {[%clk 0:00:39]}  d4 {[%clk 0:00:44]} 26. b4 {[%clk 0:00:15]}  Qc3 {[%clk 0:00:31]} 27. Rd1 {[%clk 0:00:13]}  d3 {[%clk 0:00:28]} 28. Qc7 {[%clk 0:00:11]}  Qc2 {[%clk 0:00:25]} 29. Rf1 {[%clk 0:00:05]}  d2 {[%clk 0:00:18]} 30. Qd6 {[%clk 0:00:05]}  Bd5 {[%clk 0:00:16]} 31. Qe7 {[%clk 0:00:04]}  d1=Q {[%clk 0:00:01]} 32. Qf6 {[%clk 0:00:04]} 1-0


[Site "https://www.chess.com"]

[Event "Titled Tuesday Blitz November 29 Early 2022"]
[White "Vysochin, Spartak"]
[Black "Le, Tuan Minh"]
[WhiteFideId "14103516"]
[BlackFideId "12401153"]
[WhiteElo "2412"]
[BlackElo "2530"]
[Result "0-1"]
[Round "01"]
[TimeControl "180+1"]
[Date "2022.11.30"]
[WhiteClock "0:00:14"]
[BlackClock "0:01:02"]

1. d4 {[%clk 0:02:56]}  d5 {[%clk 0:02:52]} 2. Nf3 {[%clk 0:02:48]}  Nf6 {[%clk 0:02:44]} 3. Bf4 {[%clk 0:02:47]}  c5 {[%clk 0:02:44]} 4. e3 {[%clk 0:02:47]}  Qb6 {[%clk 0:02:44]} 5. b3 {[%clk 0:02:44]}  Nc6 {[%clk 0:02:43]} 6. dxc5 {[%clk 0:02:42]}  Qxc5 {[%clk 0:02:42]} 7. Nbd2 {[%clk 0:02:42]}  Bg4 {[%clk 0:02:42]} 8. Be2 {[%clk 0:02:41]}  g6 {[%clk 0:02:41]} 9. O-O {[%clk 0:02:39]}  Bg7 {[%clk 0:02:41]} 10. Rc1 {[%clk 0:02:39]}  O-O {[%clk 0:02:41]} 11. c4 {[%clk 0:02:37]}  Qa5 {[%clk 0:02:31]} 12. Qc2 {[%clk 0:02:26]}  Nb4 {[%clk 0:02:03]} 13. Qb1 {[%clk 0:02:08]}  Bf5 {[%clk 0:02:03]} 14. Qa1 {[%clk 0:01:45]}  Ne4 {[%clk 0:02:00]} 15. Be5 {[%clk 0:01:39]}  Bxe5 {[%clk 0:01:25]} 16. Qxe5 {[%clk 0:01:34]}  Nxd2 {[%clk 0:01:26]} 17. Nxd2 {[%clk 0:01:26]}  Nxa2 {[%clk 0:01:26]} 18. Rcd1 {[%clk 0:01:04]}  Nc3 {[%clk 0:01:13]} 19. Rde1 {[%clk 0:00:54]}  Nxe2+ {[%clk 0:01:13]} 20. Rxe2 {[%clk 0:00:54]}  Bd3 {[%clk 0:01:14]} 21. Rfe1 {[%clk 0:00:52]}  Bxe2 {[%clk 0:01:14]} 22. Rxe2 {[%clk 0:00:53]}  Rad8 {[%clk 0:01:04]} 23. Qxe7 {[%clk 0:00:36]}  dxc4 {[%clk 0:01:02]} 24. Nf3 {[%clk 0:00:14]}  Rd1+ {[%clk 0:01:02]} 0-1


[Site "https://www.chess.com"]

[Event "Titled Tuesday Blitz November 29 Early 2022"]
[White "Zaichenko, Daria"]
[Black "Dushyant Sharma"]
[WhiteFideId "4197453"]
[BlackFideId "25065130"]
[WhiteElo "2039"]
[BlackElo "2270"]
[Result "0-1"]
[Round "01"]
[TimeControl "180+1"]
[Date "2022.11.30"]
[WhiteClock "0:00:10"]
[BlackClock "0:00:58"]

1. e4 {[%clk 0:02:59]}  e5 {[%clk 0:02:57]} 2. Nf3 {[%clk 0:02:59]}  Nc6 {[%clk 0:02:54]} 3. Bc4 {[%clk 0:02:58]}  Bc5 {[%clk 0:02:54]} 4. d3 {[%clk 0:02:58]}  Nf6 {[%clk 0:02:53]} 5. c3 {[%clk 0:02:58]}  d5 {[%clk 0:02:53]} 6. exd5 {[%clk 0:02:56]}  Nxd5 {[%clk 0:02:54]} 7. O-O {[%clk 0:02:51]}  O-O {[%clk 0:02:54]} 8. b4 {[%clk 0:02:50]}  Be7 {[%clk 0:02:51]} 9. Qb3 {[%clk 0:02:48]}  Nb6 {[%clk 0:02:51]} 10. Bb5 {[%clk 0:02:43]}  Be6 {[%clk 0:02:51]} 11. Qc2 {[%clk 0:02:38]}  Bf6 {[%clk 0:02:51]} 12. Bxc6 {[%clk 0:02:36]}  bxc6 {[%clk 0:02:51]} 13. Bb2 {[%clk 0:02:30]}  a5 {[%clk 0:02:43]} 14. Nbd2 {[%clk 0:02:23]}  g6 {[%clk 0:02:33]} 15. Nb3 {[%clk 0:02:11]}  axb4 {[%clk 0:02:17]} 16. cxb4 {[%clk 0:02:11]}  Bd5 {[%clk 0:02:16]} 17. Nxe5 {[%clk 0:02:05]}  Qe7 {[%clk 0:02:09]} 18. Rfe1 {[%clk 0:01:54]}  Bxe5 {[%clk 0:02:02]} 19. Bxe5 {[%clk 0:01:53]}  Qxb4 {[%clk 0:02:01]} 20. Bxc7 {[%clk 0:01:48]}  Rfe8 {[%clk 0:01:52]} 21. Be5 {[%clk 0:01:41]}  Bxb3 {[%clk 0:01:48]} 22. Qxc6 {[%clk 0:01:09]}  Bd5 {[%clk 0:01:39]} 23. Qf6 {[%clk 0:01:04]}  Rxe5 {[%clk 0:01:37]} 24. Rxe5 {[%clk 0:00:52]}  Nd7 {[%clk 0:01:33]} 25. Qe7 {[%clk 0:00:47]}  Qd4 {[%clk 0:01:30]} 26. Rae1 {[%clk 0:00:26]}  Nxe5 {[%clk 0:01:27]} 27. Rxe5 {[%clk 0:00:19]}  Be6 {[%clk 0:01:25]} 28. Re1 {[%clk 0:00:13]}  Rxa2 {[%clk 0:01:16]} 29. Rf1 {[%clk 0:00:13]}  Qxd3 {[%clk 0:01:12]} 30. h3 {[%clk 0:00:13]}  Qd4 {[%clk 0:00:59]} 31. Qg5 {[%clk 0:00:10]}  Bc4 {[%clk 0:00:58]} 0-1


[Site "https://www.chess.com"]

[Event "Titled Tuesday Blitz November 29 Early 2022"]
[White "Zaksaite, Salomeja"]
[Black "Guzman, Christopher"]
[WhiteFideId "12801496"]
[BlackFideId "6405096"]
[WhiteElo "2079"]
[BlackElo "2272"]
[Result "0-1"]
[Round "01"]
[TimeControl "180+1"]
[Date "2022.11.30"]
[WhiteClock "0:00:02"]
[BlackClock "0:01:10"]

1. e4 {[%clk 0:03:00]}  e5 {[%clk 0:02:59]} 2. Nf3 {[%clk 0:03:00]}  Nc6 {[%clk 0:02:59]} 3. Bc4 {[%clk 0:02:59]}  Nf6 {[%clk 0:02:59]} 4. d4 {[%clk 0:02:58]}  exd4 {[%clk 0:02:58]} 5. e5 {[%clk 0:02:58]}  d5 {[%clk 0:02:58]} 6. Bb5 {[%clk 0:02:58]}  Nd7 {[%clk 0:02:59]} 7. Bxc6 {[%clk 0:02:54]}  bxc6 {[%clk 0:02:59]} 8. Nxd4 {[%clk 0:02:54]}  Bb7 {[%clk 0:02:53]} 9. O-O {[%clk 0:02:52]}  Be7 {[%clk 0:02:52]} 10. e6 {[%clk 0:02:52]}  Nf6 {[%clk 0:02:50]} 11. exf7+ {[%clk 0:02:09]}  Kxf7 {[%clk 0:02:51]} 12. Bf4 {[%clk 0:02:08]}  Re8 {[%clk 0:02:49]} 13. Re1 {[%clk 0:02:06]}  Bc5 {[%clk 0:02:49]} 14. Nb3 {[%clk 0:01:28]}  Bb6 {[%clk 0:02:49]} 15. Nc3 {[%clk 0:01:24]}  c5 {[%clk 0:02:47]} 16. a4 {[%clk 0:00:46]}  a5 {[%clk 0:02:44]} 17. Be5 {[%clk 0:00:35]}  d4 {[%clk 0:02:40]} 18. Bxf6 {[%clk 0:00:29]}  Qxf6 {[%clk 0:02:38]} 19. Qh5+ {[%clk 0:00:29]}  Qg6 {[%clk 0:02:30]} 20. Qxg6+ {[%clk 0:00:15]}  hxg6 {[%clk 0:02:31]} 21. Nb5 {[%clk 0:00:11]}  Bd5 {[%clk 0:02:27]} 22. Nd2 {[%clk 0:00:06]}  Re6 {[%clk 0:02:16]} 23. c4 {[%clk 0:00:05]}  Bc6 {[%clk 0:02:12]} 24. Kf1 {[%clk 0:00:05]}  Rae8 {[%clk 0:02:08]} 25. f3 {[%clk 0:00:05]}  Rh8 {[%clk 0:02:01]} 26. h3 {[%clk 0:00:05]}  Bd7 {[%clk 0:02:01]} 27. Rxe6 {[%clk 0:00:04]}  Bxe6 {[%clk 0:02:00]} 28. Re1 {[%clk 0:00:05]}  Rd8 {[%clk 0:01:58]} 29. Kf2 {[%clk 0:00:04]}  Rb8 {[%clk 0:01:58]} 30. b3 {[%clk 0:00:05]}  Rd8 {[%clk 0:01:52]} 31. Ne4 {[%clk 0:00:05]}  Bf5 {[%clk 0:01:48]} 32. g4 {[%clk 0:00:04]}  Bd7 {[%clk 0:01:46]} 33. f4 {[%clk 0:00:04]}  Kg8 {[%clk 0:01:38]} 34. Ng5 {[%clk 0:00:04]}  c6 {[%clk 0:01:37]} 35. Nd6 {[%clk 0:00:03]}  Bc7 {[%clk 0:01:35]} 36. Nde4 {[%clk 0:00:03]}  Bxf4 {[%clk 0:01:34]} 37. Nf3 {[%clk 0:00:02]}  Be3+ {[%clk 0:01:32]} 38. Ke2 {[%clk 0:00:01]}  Re8 {[%clk 0:01:27]} 39. Kd3 {[%clk 0:00:02]}  Rf8 {[%clk 0:01:20]} 40. Nfd2 {[%clk 0:00:01]}  g5 {[%clk 0:01:11]} 41. Nxc5 {[%clk 0:00:01]}  Be8 {[%clk 0:01:11]} 42. Nce4 {[%clk 0:00:02]}  Bg6 {[%clk 0:01:11]} 43. Re2 {[%clk 0:00:02]}  Re8 {[%clk 0:01:10]} 44. Rxe3 {[%clk 0:00:01]}  dxe3 {[%clk 0:01:10]} 45. Kxe3 {[%clk 0:00:02]}  Bxe4 {[%clk 0:01:09]} 46. Nxe4 {[%clk 0:00:02]}  Rb8 {[%clk 0:01:10]} 47. Kd4 {[%clk 0:00:02]}  Rxb3 {[%clk 0:01:09]} 48. Kc5 {[%clk 0:00:02]}  Ra3 {[%clk 0:01:09]} 49. Kxc6 {[%clk 0:00:02]}  Rxa4 {[%clk 0:01:10]} 50. c5 {[%clk 0:00:02]}  Rxe4 {[%clk 0:01:10]} 0-1


[Site "https://www.chess.com"]

[Event "Titled Tuesday Blitz November 29 Early 2022"]
[White "Zaloznyy, Mike"]
[Black "Pinheiro, Iung Alicio de O."]
[WhiteFideId "2023075"]
[BlackFideId "2104350"]
[WhiteElo "2126"]
[BlackElo "2283"]
[Result "1-0"]
[Round "01"]
[TimeControl "180+1"]
[Date "2022.11.30"]
[WhiteClock "0:01:23"]
[BlackClock "0:00:12"]

1. Nf3 {[%clk 0:02:53]}  d5 {[%clk 0:02:58]} 2. g3 {[%clk 0:02:50]}  c6 {[%clk 0:02:56]} 3. Bg2 {[%clk 0:02:42]}  Bg4 {[%clk 0:02:55]} 4. Ne5 {[%clk 0:02:38]}  Bf5 {[%clk 0:02:49]} 5. O-O {[%clk 0:02:26]}  Nd7 {[%clk 0:02:24]} 6. d4 {[%clk 0:02:23]}  Nxe5 {[%clk 0:02:13]} 7. dxe5 {[%clk 0:02:23]}  Qd7 {[%clk 0:02:14]} 8. Nd2 {[%clk 0:02:19]}  Bh3 {[%clk 0:02:11]} 9. e4 {[%clk 0:02:16]}  d4 {[%clk 0:01:57]} 10. Bxh3 {[%clk 0:02:13]}  Qxh3 {[%clk 0:01:58]} 11. Nf3 {[%clk 0:02:12]}  O-O-O {[%clk 0:01:38]} 12. Ng5 {[%clk 0:01:57]}  Qd7 {[%clk 0:01:31]} 13. Nxf7 {[%clk 0:01:55]}  e6 {[%clk 0:01:30]} 14. Nxh8 {[%clk 0:01:50]}  Nh6 {[%clk 0:01:17]} 15. Bxh6 {[%clk 0:01:47]}  gxh6 {[%clk 0:01:18]} 16. Qh5 {[%clk 0:01:42]}  Qg7 {[%clk 0:00:13]} 17. Nf7 {[%clk 0:01:32]}  Rd7 {[%clk 0:00:13]} 18. Nd6+ {[%clk 0:01:28]}  Kc7 {[%clk 0:00:13]} 19. Ne8+ {[%clk 0:01:23]}  Kd8 {[%clk 0:00:12]} 20. Nxg7 {[%clk 0:01:23]} 1-0


[Site "https://www.chess.com"]